[Event "98th Caplin Hastings Masters 2024-25"]
[Site "Hastings"]
[Date "2024.12.30"]
[Round "4.34"]
[White "Hu, Junyan"]
[Black "Zhang, Junyi"]
[Result "0-1"]
[ECO "B13"]
[WhiteElo "1933"]
[BlackElo "2070"]
[Annotator "NA RC"]
[PlyCount "120"]
[EventDate "2024.12.23"]
[EventType "swiss"]
[EventCountry "ENG"]
[SourceTitle "playchess.com"]
[Source "ChessBase"]
[SourceQuality "1"]
[TimeControl "5400+30"]

1. e4 {[%emt 0:00:03]} c6 {[%emt 0:01:09]} 2. d4 {[%emt 0:00:28]} d5 {[%emt 0:00:07]} 3. exd5 {[%emt 0:00:04]} cxd5 {[%emt 0:00:07]} 4. Bd3 {[%emt 0:00:04]} Nc6 {[%emt 0:00:18]} 5. c3 {[%emt 0:00:09]} Nf6 {[%emt 0:00:57]} 6. h3 {[%emt 0:00:05]} e6 {[%emt 0:00:38]} 7. Nf3 {[%emt 0:00:10]} Bd6 {[%emt 0:00:04]} 8. O-O {[%emt 0:00:24]} O-O {[%emt 0:00:08]} 9. Re1 {[%emt 0:00:47]} Qc7 {[%emt 0:00:05]} 10. Qc2 {[%emt 0:01:59]} h6 {[%emt 0:00:56]} 11. Nbd2 {[%emt 0:01:28]} Bd7 {[%emt 0:00:18]} 12. Nb3 {[%emt 0:00:49]} Rfc8 {[%emt 0:01:12]} 13. Qe2 {[%emt 0:00:14]} a5 {[%emt 0:02:04]} 14. Ne5 {[%emt 0:00:36]} a4 {[%emt 0:00:23]} 15. Nd2 {[%emt 0:00:05]} Na5 {[%emt 0:00:36]} 16. Ndf3 {[%emt 0:01:27]} Rab8 {[%emt 0:01:43]} 17. Bb1 {[%emt 0:02:11]} a3 {[%emt 0:01:09]} 18. Qd3 {[%emt 0:00:54]} Nc4 {[%emt 0:00:44]} 19. Nxc4 {[%emt 0:00:58]} Qxc4 {[%emt 0:00:47]} 20. Ne5 {[%emt 0:01:36]} Qxd3 {[%emt 0:01:25]} 21. Bxd3 {[%emt 0:00:33]} b5 {[%emt 0:00:04]} 22. Rb1 {[%emt 0:01:52]} b4 {[%emt 0:01:07]} 23. Ba6 {[%emt 0:03:11]} Rd8 {[%emt 0:04:18]} 24. Bd3 {[%emt 0:02:52]} Rdc8 {[%emt 0:08:15]} 25. Ba6 {[%emt 0:02:04]} Rc7 {[%emt 0:02:56]} 26. bxa3 {[%emt 0:02:31]} Ra8 {[%emt 0:00:08]} 27. Bf1 {[%emt 0:01:07]} bxc3 {[%emt 0:00:46]} 28. Nxd7 {[%emt 0:01:30]} Nxd7 {[%emt 0:01:39]} 29. Rb3 {[%emt 0:00:17]} e5 {[%emt 0:02:40]} 30. dxe5 {[%emt 0:00:46]} Bxe5 {[%emt 0:00:06]} 31. a4 {[%emt 0:00:53]} Bf6 {[%emt 0:00:52]} 32. Bb5 {[%emt 0:00:10]} Nc5 {[%emt 0:00:36]} 33. Ra3 {[%emt 0:00:22]} d4 {[%emt 0:04:37]} 34. a5 {[%emt 0:01:06]} d3 {[%emt 0:00:57]} 35. Rd1 {[%emt 0:00:15]} d2 {[%emt 0:05:33]} 36. Bxd2 {[%emt 0:00:17]} cxd2 {[%emt 0:00:11]} 37. Rxd2 {[%emt 0:00:12]} Rca7 {[%emt 0:00:42]} 38. Rc2 {[%emt 0:00:14]} Be7 {[%emt 0:00:58]} 39. Re2 {[%emt 0:01:02]} Ne6 {[%emt 0:00:47]} 40. Rae3 {[%emt 0:00:39]} Rxa5 {[%emt 0:01:12]} 41. Bc4 {[%emt 0:01:15]} Bc5 {[%emt 0:01:07]} 42. Re5 {[%emt 0:00:29]} Nf4 {[%emt 0:12:39]} 43. R2e4 {[%emt 0:00:08]} g5 {[%emt 0:00:26]} 44. Rf5 {[%emt 0:00:09]} Bxf2+ {[%emt 0:00:25]} 45. Kxf2 {[%emt 0:00:05]} Rxf5 {[%emt 0:00:05]} 46. Re1 {[%emt 0:00:12]} Nd3+ {[%emt 0:00:05]} 47. Ke3 {[%emt 0:00:06]} Nxe1 {[%emt 0:00:33]} 48. Bd3 {[%emt 0:00:04]} Ra3 {[%emt 0:45:56]} 49. g4 {[%emt 0:00:06]} Re5+ {[%emt 0:00:00]} 50. Kd4 {[%emt 0:00:06]} Nxd3 {[%emt 0:00:00]} 51. h4 {[%emt 0:00:04]} gxh4 {[%emt 0:00:00]} 52. g5 {[%emt 0:00:04]} Ra4+ {[%emt 0:00:00]} 53. Kc3 {[%emt 0:00:05]} Nc5 {[%emt 0:00:00]} 54. a3 {[%emt 0:00:05]} Re3+ {[%emt 0:00:00]} 55. Kd2 {[%emt 0:00:06]} Rh3 {[%emt 0:00:00]} 56. g6 {[%emt 0:00:05]} Raxa3 {[%emt 0:00:00]} 57. gxf7+ {[%emt 0:00:07]} Kf8 {[%emt 0:00:00]} 58. Kc2 {[%emt 0:00:04]} Rh2+ {[%emt 0:00:00]} 59. Kb1 {[%emt 0:00:06]} Ne4 {[%emt 0:00:00]} 60. Kc1 {[%emt 0:00:07]} Ra1# {[%emt 0:00:00]} 0-1

[Event "98th Caplin Hastings Masters 2024-25"]
[Site "Hastings"]
[Date "2024.12.30"]
[Round "4.35"]
[White "Dette, Jan"]
[Black "Sasikumar, Srivathsan"]
[Result "0-1"]
[ECO "B23"]
[WhiteElo "2102"]
[BlackElo "1904"]
[Annotator "ChessBase"]
[PlyCount "128"]
[EventDate "2024.12.23"]
[EventType "swiss"]
[EventCountry "ENG"]
[SourceTitle "playchess.com"]
[Source "ChessBase"]
[SourceQuality "1"]
[TimeControl "5400+30"]

1. e4 {[%emt 0:00:03]} c5 {[%emt 0:00:24]} 2. Nc3 {[%emt 0:00:07]} Nc6 {[%emt 0:00:27]} 3. Bb5 {[%emt 0:00:05]} e6 {[%emt 0:00:44]} 4. Bxc6 {[%emt 0:00:09]} bxc6 {[%emt 0:00:08]} 5. d3 {[%emt 0:00:31]} d6 {[%emt 0:01:09]} 6. f4 {[%emt 0:01:54]} e5 {[%emt 0:05:35]} 7. fxe5 {[%emt 0:02:13]} dxe5 {[%emt 0:01:49]} 8. Nf3 {[%emt 0:00:09]} Bd6 {[%emt 0:03:40]} 9. O-O {[%emt 0:00:37]} Ne7 {[%emt 0:01:07]} 10. Ng5 {[%emt 0:00:32]} f6 {[%emt 0:10:26]} 11. Nf3 {[%emt 0:00:30]} Ng6 {[%emt 0:00:58]} 12. Be3 {[%emt 0:00:34]} O-O {[%emt 0:01:19]} 13. Qe1 {[%emt 0:02:13]} Be6 {[%emt 0:04:11]} 14. b3 {[%emt 0:00:16]} Qe7 {[%emt 0:06:42]} 15. Na4 {[%emt 0:01:07]} Nf4 {[%emt 0:04:54]} 16. Qf2 {[%emt 0:01:22]} Bg4 {[%emt 0:08:07]} 17. Bxc5 {[%emt 0:03:47]} Bh3 {[%emt 0:02:35]} 18. Bxd6 {[%emt 0:24:16]} Qxd6 {[%emt 0:00:10]} 19. Qc5 {[%emt 0:00:17]} Qxc5+ {[%emt 0:00:31]} 20. Nxc5 {[%emt 0:00:05]} Bxg2 {[%emt 0:00:44]} 21. Rf2 {[%emt 0:00:25]} Bh3 {[%emt 0:00:18]} 22. Kh1 {[%emt 0:09:10]} Rfd8 {[%emt 0:10:11]} 23. Nb7 {[%emt 0:06:13]} Rd7 {[%emt 0:00:41]} 24. Na5 {[%emt 0:00:09]} Rc8 {[%emt 0:00:42]} 25. Nc4 {[%emt 0:01:29]} g5 {[%emt 0:08:57]} 26. Ng1 {[%emt 0:02:05]} Bg4 {[%emt 0:01:12]} 27. Ne3 {[%emt 0:00:23]} Be6 {[%emt 0:01:41]} 28. Ne2 {[%emt 0:01:38]} h5 {[%emt 0:01:32]} 29. Ng3 {[%emt 0:07:19]} Kf7 {[%emt 0:04:08]} 30. Ngf5 {[%emt 0:00:08]} Bxf5 {[%emt 0:00:11]} 31. Nxf5 {[%emt 0:00:13]} Ke6 {[%emt 0:01:45]} 32. Rd1 {[%emt 0:04:48]} c5 {[%emt 0:01:17]} 33. Rfd2 {[%emt 0:00:32]} Rcd8 {[%emt 0:02:45]} 34. Kg1 {[%emt 0:00:35]} Rg8 {[%emt 0:01:31]} 35. Kf2 {[%emt 0:00:16]} h4 {[%emt 0:01:44]} 36. c3 {[%emt 0:01:24]} Rgd8 {[%emt 0:04:13]} 37. d4 {[%emt 0:01:16]} cxd4 {[%emt 0:01:02]} 38. cxd4 {[%emt 0:00:05]} exd4 {[%emt 0:00:04]} 39. Nxd4+ {[%emt 0:00:08]} Kf7 {[%emt 0:00:16]} 40. Ke3 {[%emt 0:00:23]} Kg6 {[%emt 0:02:55]} 41. a4 {[%emt 0:03:36]} Kh5 {[%emt 0:01:47]} 42. a5 {[%emt 0:01:17]} Kg4 {[%emt 0:01:57]} 43. b4 {[%emt 0:02:32]} Kh3 {[%emt 0:01:55]} 44. b5 {[%emt 0:15:01]} Ng2+ {[%emt 0:02:23]} 45. Kf2 {[%emt 0:00:06]} Nf4 {[%emt 0:00:40]} 46. b6 {[%emt 0:01:34]} axb6 {[%emt 0:00:41]} 47. a6 {[%emt 0:10:28]} Ne6 {[%emt 0:01:02]} 48. Rd3+ {[%emt 0:00:00]} Kg4 {[%emt 0:00:06]} 49. h3+ {[%emt 0:00:00]} Kh5 {[%emt 0:00:09]} 50. a7 {[%emt 0:00:00]} Nxd4 {[%emt 0:01:29]} 51. Rxd4 {[%emt 0:00:00]} Rxd4 {[%emt 0:00:08]} 52. Rxd4 {[%emt 0:00:00]} Ra8 {[%emt 0:00:14]} 53. Rd7 {[%emt 0:00:00]} Kg6 {[%emt 0:00:44]} 54. Ke3 {[%emt 0:00:00]} b5 {[%emt 0:00:07]} 55. Kd4 {[%emt 0:00:00]} g4 {[%emt 0:01:01]} 56. Ke3 {[%emt 0:01:34]} g3 {[%emt 0:00:41]} 57. Kf4 {[%emt 0:00:17]} g2 {[%emt 0:00:31]} 58. Rd1 {[%emt 0:00:12]} Rxa7 {[%emt 0:00:02]} 59. Kg4 {[%emt 0:00:16]} Ra2 {[%emt 0:00:40]} 60. Kxh4 {[%emt 0:00:06]} b4 {[%emt 0:00:28]} 61. Kg3 {[%emt 0:00:14]} b3 {[%emt 0:00:40]} 62. Rb1 {[%emt 0:00:40]} Rc2 {[%emt 0:00:22]} 63. Kh2 {[%emt 0:00:34]} g1=Q+ {[%emt 0:00:49]} 64. Kxg1 {[%emt 0:00:11]} b2 {[%emt 0:00:01]} 0-1

[Event "98th Caplin Hastings Masters 2024-25"]
[Site "Hastings"]
[Date "2024.12.30"]
[Round "4.36"]
[White "Verbin, Valentina"]
[Black "Rastogi, Nayan Keats"]
[Result "1/2-1/2"]
[ECO "A07"]
[WhiteElo "2093"]
[BlackElo "1892"]
[Annotator "NA"]
[PlyCount "219"]
[EventDate "2024.12.23"]
[EventType "swiss"]
[EventCountry "ENG"]
[SourceTitle "playchess.com"]
[Source "ChessBase"]
[SourceQuality "1"]
[TimeControl "5400+30"]

1. Nf3 {[%emt 0:02:21]} Nf6 {[%emt 0:00:04]} 2. g3 {[%emt 0:00:10]} d5 {[%emt 0:00:07]} 3. Bg2 {[%emt 0:00:17]} c6 {[%emt 0:00:15]} 4. O-O {[%emt 0:00:53]} Bf5 {[%emt 0:00:17]} 5. d3 {[%emt 0:00:45]} Nbd7 {[%emt 0:00:49]} 6. Nh4 {[%emt 0:08:35]} e6 {[%emt 0:06:04]} 7. Nxf5 {[%emt 0:03:27]} exf5 {[%emt 0:00:06]} 8. c4 {[%emt 0:01:27]} g6 {[%emt 0:04:04]} 9. cxd5 {[%emt 0:02:30]} Nxd5 {[%emt 0:03:23]} 10. e4 {[%emt 0:04:21]} fxe4 {[%emt 0:03:44]} 11. dxe4 {[%emt 0:00:11]} N5b6 {[%emt 0:02:24]} 12. a4 {[%emt 0:13:58]} Bg7 {[%emt 0:09:09]} 13. a5 {[%emt 0:01:50]} Nc4 {[%emt 0:05:13]} 14. Bh3 {[%emt 0:22:08]} Nc5 {[%emt 0:15:57]} 15. Qe1 {[%emt 0:13:19]} Nxb2 {[%emt 0:10:59]} 16. Bxb2 {[%emt 0:02:49]} Bxb2 {[%emt 0:00:17]} 17. Ra2 {[%emt 0:00:03]} Bg7 {[%emt 0:01:39]} 18. Qb4 {[%emt 0:09:49]} Qd4 {[%emt 0:02:12]} 19. Qa3 {[%emt 0:00:46]} O-O {[%emt 0:10:20]} 20. Rd2 {[%emt 0:00:20]} Qe5 {[%emt 0:00:43]} 21. f4 {[%emt 0:00:29]} Qh5 {[%emt 0:07:49]} 22. Bg2 {[%emt 0:00:13]} Na6 {[%emt 0:01:12]} 23. e5 {[%emt 0:02:09]} Rfd8 {[%emt 0:02:13]} 24. Qe7 {[%emt 0:02:39]} Rxd2 {[%emt 0:02:30]} 25. Nxd2 {[%emt 0:00:06]} Rb8 {[%emt 0:01:27]} 26. Ne4 {[%emt 0:00:36]} Qf5 {[%emt 0:01:50]} 27. Nd6 {[%emt 0:03:21]} Qe6 {[%emt 0:00:47]} 28. Qxe6 {[%emt 0:01:29]} fxe6 {[%emt 0:00:06]} 29. Rb1 {[%emt 0:00:13]} b6 {[%emt 0:05:25]} 30. Bxc6 {[%emt 0:02:12]} bxa5 {[%emt 0:00:10]} 31. Ra1 {[%emt 0:00:04]} Rb6 {[%emt 0:01:52]} 32. Nc8 {[%emt 0:00:13]} Rb4 {[%emt 0:02:09]} 33. Rxa5 {[%emt 0:00:24]} Nb8 {[%emt 0:00:13]} 34. Ne7+ {[%emt 0:01:32]} Kf8 {[%emt 0:00:15]} 35. Rxa7 {[%emt 0:00:05]} Rb6 {[%emt 0:01:41]} 36. Bf3 {[%emt 0:00:44]} g5 {[%emt 0:00:12]} 37. Nc8 {[%emt 0:00:50]} Rb1+ {[%emt 0:00:32]} 38. Kg2 {[%emt 0:00:08]} gxf4 {[%emt 0:00:24]} 39. gxf4 {[%emt 0:00:12]} Bh6 {[%emt 0:00:12]} 40. Nd6 {[%emt 0:00:52]} Rb6 {[%emt 0:00:38]} 41. Rxh7 {[%emt 0:01:07]} Bg7 {[%emt 0:00:30]} 42. Bg4 {[%emt 0:01:00]} Rb4 {[%emt 0:00:19]} 43. Kg3 {[%emt 0:00:45]} Kg8 {[%emt 0:00:18]} 44. Rh3 {[%emt 0:00:12]} Rb3+ {[%emt 0:00:21]} 45. Kh4 {[%emt 0:00:09]} Rb4 {[%emt 0:00:26]} 46. Bxe6+ {[%emt 0:00:07]} Kf8 {[%emt 0:00:07]} 47. Rb3 {[%emt 0:00:54]} Rxf4+ {[%emt 0:00:22]} 48. Kg5 {[%emt 0:00:03]} Bxe5 {[%emt 0:00:07]} 49. Rxb8+ {[%emt 0:00:04]} Ke7 {[%emt 0:00:18]} 50. Nf5+ {[%emt 0:01:59]} Kxe6 {[%emt 0:00:18]} 51. Re8+ {[%emt 0:00:18]} Kd5 {[%emt 0:00:16]} 52. Ne7+ {[%emt 0:00:33]} Kd6 {[%emt 0:03:02]} 53. Nc8+ {[%emt 0:00:17]} Kd5 {[%emt 0:00:16]} 54. Ne7+ {[%emt 0:00:30]} Kd6 {[%emt 0:00:09]} 55. Nf5+ {[%emt 0:00:03]} Kd5 {[%emt 0:00:10]} 56. Ne3+ {[%emt 0:00:03]} Kd4 {[%emt 0:01:04]} 57. Ng4 {[%emt 0:00:47]} Rxg4+ {[%emt 0:00:29]} 58. Kxg4 {[%emt 0:00:05]} Bxh2 {[%emt 0:00:07]} 59. Kf3 {[%emt 0:00:33]} Bd6 {[%emt 0:00:23]} 60. Re1 {[%emt 0:00:22]} Kd5 {[%emt 0:00:19]} 61. Re4 {[%emt 0:00:19]} Be5 {[%emt 0:00:07]} 62. Rh4 {[%emt 0:00:18]} Bd6 {[%emt 0:00:43]} 63. Ke3 {[%emt 0:00:30]} Be5 {[%emt 0:00:40]} 64. Rh5 {[%emt 0:00:14]} Kd6 {[%emt 0:00:08]} 65. Ke4 {[%emt 0:00:05]} Bg7 {[%emt 0:00:47]} 66. Rh7 {[%emt 0:00:21]} Bb2 {[%emt 0:00:21]} 67. Rh2 {[%emt 0:00:43]} Bg7 {[%emt 0:00:14]} 68. Rh5 {[%emt 0:00:12]} Ke6 {[%emt 0:00:13]} 69. Rg5 {[%emt 0:00:39]} Bb2 {[%emt 0:00:13]} 70. Rg6+ {[%emt 0:00:08]} Kd7 {[%emt 0:00:31]} 71. Kd5 {[%emt 0:00:37]} Ba3 {[%emt 0:01:07]} 72. Rg7+ {[%emt 0:00:04]} Be7 {[%emt 0:00:42]} 73. Rh7 {[%emt 0:00:20]} Kd8 {[%emt 0:01:08]} 74. Ke6 {[%emt 0:00:06]} Ba3 {[%emt 0:01:07]} 75. Rd7+ {[%emt 0:00:46]} Kc8 {[%emt 0:00:13]} 76. Rd3 {[%emt 0:01:50]} Bb4 {[%emt 0:00:18]} 77. Rd4 {[%emt 0:00:43]} Be1 {[%emt 0:00:16]} 78. Rd7 {[%emt 0:00:29]} Bg3 {[%emt 0:00:09]} 79. Rg7 {[%emt 0:00:40]} Bh2 {[%emt 0:00:18]} 80. Kd5 {[%emt 0:01:02]} Kb8 {[%emt 0:00:14]} 81. Kc6 {[%emt 0:00:13]} Ka8 {[%emt 0:00:13]} 82. Rh7 {[%emt 0:00:38]} Bg3 {[%emt 0:00:27]} 83. Rh8+ {[%emt 0:01:07]} Bb8 {[%emt 0:00:23]} 84. Rg8 {[%emt 0:01:04]} Ka7 {[%emt 0:00:05]} 85. Rg4 {[%emt 0:00:57]} Ka8 {[%emt 0:00:12]} 86. Ra4+ {[%emt 0:00:25]} Ba7 {[%emt 0:00:05]} 87. Re4 {[%emt 0:00:23]} Bb8 {[%emt 0:00:09]} 88. Kb6 {[%emt 0:00:24]} Ba7+ {[%emt 0:00:32]} 89. Ka6 {[%emt 0:00:18]} Bb8 {[%emt 0:00:09]} 90. Rh4 {[%emt 0:00:33]} Ba7 {[%emt 0:00:59]} 91. Re4 {[%emt 0:00:36]} Bb8 {[%emt 0:00:11]} 92. Re7 {[%emt 0:00:35]} Bg3 {[%emt 0:00:40]} 93. Kb6 {[%emt 0:00:17]} Bb8 {[%emt 0:00:23]} 94. Rf7 {[%emt 0:00:51]} Bg3 {[%emt 0:01:23]} 95. Rf3 {[%emt 0:00:24]} Be5 {[%emt 0:00:12]} 96. Rf8+ {[%emt 0:00:34]} Bb8 {[%emt 0:00:10]} 97. Kc6 {[%emt 0:00:13]} Ka7 {[%emt 0:00:32]} 98. Rf3 {[%emt 0:00:16]} Ka8 {[%emt 0:00:22]} 99. Ra3+ {[%emt 0:00:41]} Ba7 {[%emt 0:00:06]} 100. Ra1 {[%emt 0:00:31]} Kb8 {[%emt 0:00:06]} 101. Rb1+ {[%emt 0:00:49]} Ka8 {[%emt 0:00:32]} 102. Ra1 {[%emt 0:00:40]} Kb8 {[%emt 0:00:13]} 103. Rf1 {[%emt 0:00:11]} Ka8 {[%emt 0:00:18]} 104. Kc7 {[%emt 0:00:38]} Bb8+ {[%emt 0:00:20]} 105. Kc8 {[%emt 0:00:13]} Ba7 {[%emt 0:00:11]} 106. Rb1 {[%emt 0:00:26]} Be3 {[%emt 0:00:40]} 107. Rb3 {[%emt 0:00:23]} Ba7 {[%emt 0:00:16]} 108. Kc7 {[%emt 0:00:23]} Bd4 {[%emt 0:03:33]} 109. Rb5 {[%emt 0:00:46]} Ba7 {[%emt 0:01:38]} 110. Rg5 {[%emt 0:00:29]} 1/2-1/2

[Event "98th Caplin Hastings Masters 2024-25"]
[Site "Hastings"]
[Date "2024.12.30"]
[Round "4.37"]
[White "Kim, Taewoo A"]
[Black "Bharat Kumar, Balahari"]
[Result "0-1"]
[ECO "D37"]
[WhiteElo "1863"]
[BlackElo "2063"]
[Annotator "NA"]
[PlyCount "78"]
[EventDate "2024.12.23"]
[EventType "swiss"]
[EventCountry "ENG"]
[SourceTitle "playchess.com"]
[Source "ChessBase"]
[SourceQuality "1"]
[TimeControl "5400+30"]

1. d4 {[%emt 0:00:06]} d5 {[%emt 0:00:07]} 2. c4 {[%emt 0:00:06]} e6 {[%emt 0:00:04]} 3. Nf3 {[%emt 0:00:06]} a6 {[%emt 0:00:20]} 4. c5 {[%emt 0:00:28]} Nf6 {[%emt 0:04:40]} 5. Nc3 {[%emt 0:03:32]} Nbd7 {[%emt 0:11:54]} 6. Bf4 {[%emt 0:01:21]} Be7 {[%emt 0:01:48]} 7. e3 {[%emt 0:01:45]} O-O {[%emt 0:01:14]} 8. Bd3 {[%emt 0:02:09]} c6 {[%emt 0:06:40]} 9. O-O {[%emt 0:01:51]} a5 {[%emt 0:17:52]} 10. a3 {[%emt 0:02:32]} Nh5 {[%emt 0:05:55]} 11. b4 {[%emt 0:01:50]} Nxf4 {[%emt 0:06:02]} 12. exf4 {[%emt 0:00:20]} Qc7 {[%emt 0:01:55]} 13. g3 {[%emt 0:01:26]} b6 {[%emt 0:12:31]} 14. Qe2 {[%emt 0:03:20]} g6 {[%emt 0:01:52]} 15. h4 {[%emt 0:01:55]} Bf6 {[%emt 0:12:49]} 16. Ne5 {[%emt 0:06:13]} Bg7 {[%emt 0:02:58]} 17. h5 {[%emt 0:04:10]} g5 {[%emt 0:09:03]} 18. h6 {[%emt 0:11:14]} Bf6 {[%emt 0:00:46]} 19. Rae1 {[%emt 0:20:16]} axb4 {[%emt 0:00:32]} 20. axb4 {[%emt 0:00:23]} Nxe5 {[%emt 0:00:55]} 21. fxe5 {[%emt 0:03:33]} Bd8 {[%emt 0:00:10]} 22. f4 {[%emt 0:02:11]} f5 {[%emt 0:00:20]} 23. g4 {[%emt 0:02:48]} gxf4 {[%emt 0:00:31]} 24. gxf5 {[%emt 0:02:17]} exf5 {[%emt 0:00:19]} 25. Kh1 {[%emt 0:03:09]} Kh8 {[%emt 0:00:37]} 26. Rxf4 {[%emt 0:10:43]} Bg5 {[%emt 0:00:26]} 27. Rf3 {[%emt 0:00:50]} Be6 {[%emt 0:00:19]} 28. Rg1 {[%emt 0:01:13]} Qe7 {[%emt 0:01:04]} 29. Qh2 {[%emt 0:03:55]} f4 {[%emt 0:00:42]} 30. Qh5 {[%emt 0:02:40]} Rg8 {[%emt 0:00:16]} 31. Ne2 {[%emt 0:02:24]} bxc5 {[%emt 0:00:24]} 32. bxc5 {[%emt 0:00:47]} Raf8 {[%emt 0:00:45]} 33. Qh2 {[%emt 0:01:03]} Qf7 {[%emt 0:00:34]} 34. Rg2 {[%emt 0:01:50]} Bf5 {[%emt 0:00:32]} 35. Ng1 {[%emt 0:01:49]} Be4 {[%emt 0:00:27]} 36. Rff2 {[%emt 0:01:13]} Bxd3 {[%emt 0:00:15]} 37. Nf3 {[%emt 0:00:12]} Be4 {[%emt 0:00:22]} 38. Qh3 {[%emt 0:00:57]} Bxf3 {[%emt 0:00:12]} 39. Rxf3 {[%emt 0:00:17]} Rg6 {[%emt 0:01:00]} 0-1

[Event "98th Caplin Hastings Masters 2024-25"]
[Site "Hastings"]
[Date "2024.12.30"]
[Round "4.38"]
[White "Gorainow, Nikita"]
[Black "Buckland, Louis"]
[Result "1-0"]
[ECO "B15"]
[WhiteElo "2045"]
[BlackElo "1856"]
[Annotator "NA"]
[PlyCount "113"]
[EventDate "2024.12.23"]
[EventType "swiss"]
[EventCountry "ENG"]
[SourceTitle "playchess.com"]
[Source "ChessBase"]
[SourceQuality "1"]
[TimeControl "5400+30"]

1. e4 {[%emt 0:00:08]} c6 {[%emt 0:00:02]} 2. d4 {[%emt 0:00:21]} d5 {[%emt 0:00:03]} 3. Nd2 {[%emt 0:00:11]} dxe4 {[%emt 0:00:04]} 4. Nxe4 {[%emt 0:00:05]} Nf6 {[%emt 0:00:05]} 5. Nxf6+ {[%emt 0:00:16]} exf6 {[%emt 0:00:03]} 6. c3 {[%emt 0:00:09]} Bd6 {[%emt 0:00:16]} 7. Bd3 {[%emt 0:05:01]} O-O {[%emt 0:00:09]} 8. Ne2 {[%emt 0:00:13]} Re8 {[%emt 0:00:07]} 9. O-O {[%emt 0:01:13]} Nd7 {[%emt 0:00:09]} 10. Ng3 {[%emt 0:00:42]} Nf8 {[%emt 0:03:20]} 11. f4 {[%emt 0:03:10]} c5 {[%emt 0:07:54]} 12. d5 {[%emt 0:05:59]} Ng6 {[%emt 0:09:27]} 13. c4 {[%emt 0:05:59]} Qc7 {[%emt 0:01:09]} 14. Qf3 {[%emt 0:03:14]} Bd7 {[%emt 0:08:07]} 15. Bd2 {[%emt 0:03:45]} b5 {[%emt 0:03:29]} 16. b3 {[%emt 0:09:23]} bxc4 {[%emt 0:04:47]} 17. bxc4 {[%emt 0:02:33]} Rab8 {[%emt 0:05:29]} 18. Ne4 {[%emt 0:06:12]} Be7 {[%emt 0:12:37]} 19. Bc3 {[%emt 0:08:52]} Kh8 {[%emt 0:10:51]} 20. Rad1 {[%emt 0:06:50]} Bd6 {[%emt 0:06:02]} 21. g3 {[%emt 0:05:19]} Bh3 {[%emt 0:09:46]} 22. Rfe1 {[%emt 0:01:48]} Qd7 {[%emt 0:02:35]} 23. Nf2 {[%emt 0:20:10]} Bf5 {[%emt 0:00:25]} 24. Bxf5 {[%emt 0:00:33]} Qxf5 {[%emt 0:00:20]} 25. Ne4 {[%emt 0:00:21]} Qd7 {[%emt 0:01:21]} 26. Nxf6 {[%emt 0:02:22]} gxf6 {[%emt 0:04:15]} 27. Bxf6+ {[%emt 0:00:04]} Kg8 {[%emt 0:00:02]} 28. f5 {[%emt 0:00:39]} Be5 {[%emt 0:05:53]} 29. fxg6 {[%emt 0:02:37]} Bxf6 {[%emt 0:00:04]} 30. Qxf6 {[%emt 0:00:46]} hxg6 {[%emt 0:00:03]} 31. d6 {[%emt 0:02:58]} Re6 {[%emt 0:01:43]} 32. Rxe6 {[%emt 0:01:42]} Qxe6 {[%emt 0:00:02]} 33. Qxe6 {[%emt 0:00:41]} fxe6 {[%emt 0:00:01]} 34. Kf2 {[%emt 0:00:13]} Kf7 {[%emt 0:00:46]} 35. Ke3 {[%emt 0:00:12]} Ke8 {[%emt 0:01:33]} 36. Ke4 {[%emt 0:01:15]} Kd7 {[%emt 0:00:24]} 37. Ke5 {[%emt 0:01:02]} Rb2 {[%emt 0:02:05]} 38. Kf6 {[%emt 0:02:32]} Rxh2 {[%emt 0:00:29]} 39. g4 {[%emt 0:00:00]} Rc2 {[%emt 0:00:49]} 40. g5 {[%emt 0:00:12]} Rxc4 {[%emt 0:00:09]} 41. Kxg6 {[%emt 0:00:04]} Rd4 {[%emt 0:00:30]} 42. Rf1 {[%emt 0:00:56]} Kxd6 {[%emt 0:00:57]} 43. Kf7 {[%emt 0:00:04]} Rg4 {[%emt 0:02:46]} 44. g6 {[%emt 0:00:05]} c4 {[%emt 0:00:06]} 45. g7 {[%emt 0:00:13]} Kc5 {[%emt 0:00:38]} 46. g8=Q {[%emt 0:00:27]} Rxg8 {[%emt 0:00:05]} 47. Kxg8 {[%emt 0:00:04]} c3 {[%emt 0:00:40]} 48. Kf7 {[%emt 0:00:05]} Kc4 {[%emt 0:01:22]} 49. Kxe6 {[%emt 0:00:12]} c2 {[%emt 0:00:13]} 50. a4 {[%emt 0:01:14]} a5 {[%emt 0:00:18]} 51. Kd6 {[%emt 0:01:02]} Kb4 {[%emt 0:00:22]} 52. Kd5 {[%emt 0:01:27]} Kxa4 {[%emt 0:00:11]} 53. Kc4 {[%emt 0:00:07]} Ka3 {[%emt 0:00:15]} 54. Kc3 {[%emt 0:00:04]} Ka2 {[%emt 0:00:35]} 55. Kxc2 {[%emt 0:00:05]} a4 {[%emt 0:00:31]} 56. Rf3 {[%emt 0:00:27]} a3 {[%emt 0:00:07]} 57. Rc3 {[%emt 0:00:10]} 1-0

[Event "98th Caplin Hastings Masters 2024-25"]
[Site "Hastings"]
[Date "2024.12.30"]
[Round "4.39"]
[White "Flynn, David"]
[Black "Burrows, Martin P"]
[Result "0-1"]
[ECO "B23"]
[WhiteElo "1834"]
[BlackElo "2042"]
[Annotator "RC"]
[PlyCount "82"]
[EventDate "2024.12.23"]
[EventType "swiss"]
[EventCountry "ENG"]
[SourceTitle "playchess.com"]
[Source "ChessBase"]
[SourceQuality "1"]
[TimeControl "5400+30"]

1. e4 {[%emt 0:00:35]} c5 {[%emt 0:00:09]} 2. Nc3 {[%emt 0:00:18]} Nc6 {[%emt 0:00:09]} 3. Bb5 {[%emt 0:00:03]} Nd4 {[%emt 0:00:10]} 4. Nf3 {[%emt 0:00:03]} Nxb5 {[%emt 0:00:21]} 5. Nxb5 {[%emt 0:00:06]} d6 {[%emt 0:00:19]} 6. d4 {[%emt 0:00:35]} Nf6 {[%emt 0:00:28]} 7. dxc5 {[%emt 0:05:19]} Qa5+ {[%emt 0:15:54]} 8. Nc3 {[%emt 0:00:31]} Nxe4 {[%emt 0:00:34]} 9. cxd6 {[%emt 0:03:05]} Nxc3 {[%emt 0:00:56]} 10. Qd2 {[%emt 0:01:20]} Bg4 {[%emt 0:12:39]} 11. Qxc3 {[%emt 0:00:10]} Qxc3+ {[%emt 0:00:53]} 12. bxc3 {[%emt 0:00:04]} exd6 {[%emt 0:02:53]} 13. Nd4 {[%emt 0:00:57]} Be7 {[%emt 0:03:03]} 14. Bf4 {[%emt 0:05:02]} O-O {[%emt 0:01:14]} 15. f3 {[%emt 0:02:35]} Bd7 {[%emt 0:00:56]} 16. O-O-O {[%emt 0:02:30]} d5 {[%emt 0:01:47]} 17. Rhe1 {[%emt 0:01:48]} Ba3+ {[%emt 0:02:12]} 18. Kd2 {[%emt 0:00:18]} Rfe8 {[%emt 0:11:47]} 19. Rxe8+ {[%emt 0:03:30]} Rxe8 {[%emt 0:01:35]} 20. Rb1 {[%emt 0:03:04]} b6 {[%emt 0:01:21]} 21. Re1 {[%emt 0:05:37]} Rxe1 {[%emt 0:04:02]} 22. Kxe1 {[%emt 0:00:04]} h5 {[%emt 0:00:13]} 23. Kd2 {[%emt 0:02:43]} f6 {[%emt 0:00:50]} 24. Kd3 {[%emt 0:01:17]} b5 {[%emt 0:00:44]} 25. Bb8 {[%emt 0:02:13]} a5 {[%emt 0:05:00]} 26. Bc7 {[%emt 0:01:57]} a4 {[%emt 0:00:24]} 27. Bf4 {[%emt 0:04:27]} g5 {[%emt 0:00:36]} 28. Bg3 {[%emt 0:01:38]} h4 {[%emt 0:00:58]} 29. Be1 {[%emt 0:01:46]} Kf7 {[%emt 0:00:33]} 30. g3 {[%emt 0:03:37]} h3 {[%emt 0:04:43]} 31. Bd2 {[%emt 0:06:11]} Bd6 {[%emt 0:00:22]} 32. f4 {[%emt 0:00:04]} Kg6 {[%emt 0:01:16]} 33. Be3 {[%emt 0:04:34]} Kh5 {[%emt 0:01:06]} 34. Ne2 {[%emt 0:05:00]} Kg4 {[%emt 0:01:59]} 35. fxg5 {[%emt 0:03:14]} fxg5 {[%emt 0:00:21]} 36. Ng1 {[%emt 0:02:42]} Be5 {[%emt 0:02:39]} 37. Bf2 {[%emt 0:05:38]} Bf5+ {[%emt 0:01:05]} 38. Kd2 {[%emt 0:00:09]} Be4 {[%emt 0:00:59]} 39. Be1 {[%emt 0:00:30]} Bb8 {[%emt 0:05:32]} 40. Bf2 {[%emt 0:00:51]} Bg6 {[%emt 0:00:14]} 41. Be3 {[%emt 0:01:40]} Bf7 {[%emt 0:00:33]} 0-1